bitfinex-derivatives/quotes_ETHF0:USTF0_20251116
["timestamp","ask_amount","ask_price","bid_price","bid_amount"]
[1763301801092,0.1801,3157.5,3157.3,4.34386212]
[1763301801492,0.1801,3157.5,3157.4,1.13606212]
[1763301805094,0.4444,3157.5,3157.4,1.13606212]
[1763301806888,0.1801,3157.5,3157.4,1.13606212]
[1763301807388,0.4444,3157.5,3157.4,1.13606212]
[1763301809091,0.2643,3157.4,3157.3,4.34386212]
[1763301812493,0.1801,3157.5,3157.3,4.34386212]
[1763301819010,0.1801,3157.5,3157.4,1.13606212]
[1763301819307,0.18486896,3158.0,3157.4,15.408]
[1763301819508,0.18486896,3158.0,3157.9,1.13993234]
[1763301819896,0.18486896,3158.0,3157.7,4.91769851]
[1763301819897,0.45732716,3158.5,3157.8,17.11789851]
[1763301820103,1.6967703,3159.1,3158.4,3.2078]
[1763301820308,0.149,3159.5,3159.0,5.48492563]
[1763301820511,0.149,3159.5,3159.4,3.2078]
[1763301820704,0.4074,3159.5,3159.4,3.2078]
[1763301821012,0.18027893,3159.5,3159.4,3.21033369]
[1763301825608,0.15297339,3159.5,3159.4,3.21033369]
[1763301826004,0.149,3160.5,3159.4,3.21033369]
[1763301826208,0.149,3160.5,3159.9,3.2078]
[1763301827010,0.41119161,3160.0,3159.9,3.2078]
[1763301828316,0.15279161,3160.0,3159.9,3.2078]
[1763301829109,0.41119161,3160.0,3159.9,3.2078]
[1763301829309,0.15279161,3160.0,3159.9,3.2078]
[1763301830713,0.41119161,3160.0,3159.9,3.2078]
[1763301831016,0.15279161,3160.0,3159.9,3.2078]
[1763301831815,0.41119161,3160.0,3159.9,3.2078]
[1763301832017,0.15279161,3160.0,3159.9,3.2078]
[1763301834517,0.149,3160.5,3159.9,3.2078]
[1763301835218,0.149,3160.5,3160.3,3.2078]
[1763301835418,0.15143739,3160.5,3160.3,3.2078]
[1763301836619,0.149,3161.0,3160.3,3.2078]
[1763301836816,0.149,3160.5,3160.3,3.2078]
[1763301837223,0.149,3161.0,3160.3,3.2078]
[1763301837421,0.149,3161.0,3160.7,3.2078]
[1763301837725,0.15174252,3161.0,3160.7,3.2078]
[1763301838321,0.2584,3160.8,3160.7,3.2078]
[1763301838618,0.3513,3160.8,3160.7,3.2078]
[1763301839325,0.15174252,3161.0,3160.7,3.2078]
[1763301840328,0.3513,3160.8,3160.7,3.2078]
[1763301841023,0.3513,3160.4,3160.3,3.2078]
[1763301841329,0.3513,3160.2,3160.1,0.00474909]
[1763301842021,0.2004,3160.5,3160.1,0.00474909]
[1763301842222,0.3513,3160.2,3160.1,0.00474909]
[1763301843126,6.3513,3160.2,3160.1,4.909e-05]
[1763301843319,0.3513,3159.6,3159.5,3.2078]
[1763301848739,0.00472374,3159.9,3159.5,3.2078]
[1763301850026,0.3513,3159.6,3159.5,3.2078]
[1763301853729,0.5517,3159.5,3159.4,0.00253369]
[1763301866744,0.3165,3158.8,3158.7,3.2078]
[1763301867053,0.2004,3159.5,3158.7,3.2078]
[1763301867348,0.2004,3159.5,3159.4,3.2078]
[1763301867645,0.2004,3159.5,3159.4,3.21003771]
[1763301868049,0.2004,3159.5,3159.4,9.21003771]
[1763301868244,0.00472374,3159.9,3159.4,9.21003771]
[1763301868437,0.00472374,3159.9,3159.8,3.2078]
[1763301869047,0.2004,3160.5,3159.8,9.2078]
[1763301869240,0.2004,3160.5,3160.2,4.05929875]
[1763301869543,0.2004,3160.5,3160.3,0.85149875]
[1763301869851,0.2004,3160.5,3160.4,0.85149875]
[1763301870240,0.00474909,3160.8,3160.3,0.85149875]
[1763301870549,0.1874,3160.5,3160.4,0.85149875]
[1763301871249,0.1874,3160.5,3160.3,0.85149875]
[1763301873047,0.1874,3160.5,3160.4,0.85149875]
[1763301873243,0.00474909,3160.8,3160.4,1.137898]
[1763301873445,0.00474909,3160.8,3160.7,3.2078]
[1763301873644,0.00474909,3160.8,3160.7,4.05802003]
[1763301874040,0.19434252,3161.0,3160.7,4.05802003]
[1763301874041,0.00274252,3161.0,3160.7,9.2078]
[1763301874244,3.2078,3161.9,3160.9,1.137898]
[1763301874445,0.4959,3161.5,3161.4,3.2078]
[1763301874646,0.1874,3161.5,3161.4,3.2078]
[1763301875149,0.4959,3161.5,3161.4,3.2078]
[1763301875351,0.49854336,3161.5,3161.4,3.2078]
[1763301876347,0.19004336,3161.5,3161.4,3.2078]
[1763301876743,0.49854336,3161.5,3161.4,3.2078]
[1763301879646,0.49854336,3161.5,3161.1,0.00474909]
[1763301879855,0.3085,3161.2,3161.1,0.00474909]
[1763301889247,0.3085,3160.6,3160.1,3.2078]
[1763301889454,0.3085,3160.2,3160.1,3.2078]
[1763301899768,0.3085,3159.9,3159.8,0.00474909]
[1763301900661,0.1668,3160.0,3159.8,0.00474909]
[1763301901769,0.271,3159.9,3159.8,0.00474909]
[1763301906470,0.1668,3160.0,3159.8,0.00474909]
[1763301906663,0.271,3159.9,3159.8,0.00474909]
[1763301906863,0.1668,3160.0,3159.8,0.00474909]
[1763301908066,0.271,3159.9,3159.8,0.00474909]
[1763301909467,0.1668,3160.0,3159.8,0.00474909]
[1763301909673,0.19214909,3160.5,3159.9,7.137898]
[1763301909866,0.19214909,3160.5,3160.4,3.2078]
[1763301910664,0.46314909,3160.5,3160.4,3.2078]
[1763301913376,0.19214909,3160.5,3160.4,3.2078]
[1763301915874,0.19214909,3160.5,3160.4,4.05906167]
[1763301916278,0.19214909,3160.5,3160.4,3.2078]
[1763301917276,0.45894909,3160.5,3160.4,3.2078]
[1763301918576,0.19214909,3160.5,3160.4,3.2078]
[1763301919681,3.2078,3161.1,3160.4,3.2078]
[1763301919882,0.1639,3160.5,3160.4,3.2078]
[1763301920283,0.1639,3160.5,3160.4,4.05971353]
[1763301921273,0.2668,3160.4,3160.3,0.85191353]
[1763301921479,0.1639,3160.5,3160.0,0.85191353]
[1763301921480,0.2668,3160.1,3160.0,0.85191353]
[1763301921883,0.4307,3160.0,3159.9,3.2078]
[1763301926687,0.2668,3159.9,3159.8,0.00474909]
[1763301927280,0.4307,3159.5,3159.4,0.00223771]
[1763301931209,0.4307,3159.5,3159.4,3.771e-05]
[1763301932397,0.2561,3158.7,3158.6,3.2078]
[1763301933296,0.25842115,3158.7,3158.6,3.21015846]
[1763301933495,0.2561,3158.4,3158.3,0.00474909]
[1763301933693,0.1615,3158.0,3157.7,3.2078]
[1763301933896,0.2561,3157.8,3157.7,3.2078]
[1763301934904,0.2561,3157.8,3157.7,3.21175439]
[1763301935107,0.4176,3157.5,3157.4,0.00474909]
[1763301936104,0.4176,3157.5,3157.4,0.00811316]
[1763301947823,0.4176,3157.5,3156.3,3.2078]
[1763301948009,0.2561,3156.4,3156.3,3.2078]
[1763301948821,0.1615,3156.0,3155.9,3.2078]
[1763301949615,0.1615,3156.0,3155.9,9.2078]
[1763301949813,0.1615,3156.0,3155.9,3.2078]
[1763301952021,0.4176,3156.0,3155.9,3.2078]
[1763301952923,0.2561,3155.7,3155.6,0.00474909]
[1763301955527,0.1615,3156.0,3155.6,0.00474909]
[1763301956214,0.2561,3155.7,3155.6,0.00474909]
[1763301959420,0.2561,3155.7,3155.6,4.909e-05]
[1763301959622,3.4639,3155.7,3155.6,4.909e-05]
[1763301959819,0.2973,3154.7,3154.6,3.2078]
[1763301960718,0.2973,3154.7,3154.6,3.21081159]
[1763301960918,0.1666,3155.0,3154.6,3.21081159]
[1763301962320,0.1666,3155.0,3154.6,4.06272512]
[1763301962520,0.1666,3155.0,3154.6,3.21081159]
[1763301963327,0.1666,3155.0,3154.6,4.06272512]
[1763301964624,0.1666,3155.5,3154.6,4.06272512]
[1763301964830,0.1666,3155.5,3155.0,3.2078]
[1763301967332,0.2973,3154.8,3154.7,0.85191353]
[1763301967529,0.2973,3154.7,3154.6,3.21081159]
[1763301967934,0.1666,3155.0,3154.6,3.21081159]
[1763301969734,0.2973,3154.7,3154.6,3.21081159]
[1763301971227,0.2973,3154.7,3154.3,0.00474909]
[1763301971228,0.2973,3154.4,3154.3,0.00474909]
[1763301971431,0.2973,3153.8,3153.7,3.23950929]
[1763301971826,0.1666,3154.0,3153.7,3.23950929]
[1763301972229,0.16901458,3154.0,3153.7,3.24301488]
[1763301973131,0.2973,3153.8,3153.7,3.24301488]
[1763301973337,0.2973,3153.8,3153.7,0.03521488]
[1763301973840,0.2973,3153.4,3153.3,3.2078]
[1763301974234,0.1666,3153.0,3152.8,4.05779675]
[1763301974436,0.1666,3153.0,3152.8,3.2078]
[1763301974832,0.2973,3152.9,3152.8,3.21085987]
[1763301975541,0.1666,3153.0,3152.0,3.2078]
[1763301975542,0.2746,3152.2,3152.0,3.2078]
[1763301976039,0.00475685,3152.4,3152.0,3.2078]
[1763301976726,0.00475685,3152.4,3152.0,3.21124731]
[1763301977130,0.2746,3152.1,3152.0,3.21124731]
[1763301977730,0.00475685,3152.4,3152.0,3.21124731]
[1763301978240,0.2746,3152.1,3152.0,3.21124731]
[1763301979128,0.2746,3151.7,3151.6,3.2078]
[1763301979343,0.1554,3151.5,3151.2,3.2078]
[1763301980240,0.15901021,3151.5,3151.2,3.21105415]
[1763301980741,0.00361021,3151.5,3151.2,3.21105415]
[1763301981541,0.15901021,3151.5,3151.2,3.21105415]
[1763301982139,0.2746,3151.3,3151.2,3.21105415]
[1763301982341,0.15901021,3151.5,3151.2,3.21105415]
[1763301983836,0.2746,3151.3,3151.2,3.21105415]
[1763301984339,0.2746,3150.1,3150.0,3.2078]
[1763301984529,0.2746,3150.1,3149.2,0.84999675]
[1763301984530,0.1554,3150.0,3149.5,3.2078]
[1763301985232,0.1554,3150.0,3149.5,3.21043511]
[1763301985432,0.1554,3150.0,3149.5,0.00263511]
[1763301986042,3.4824,3149.6,3149.5,0.00263511]
[1763301986429,0.1554,3148.0,3147.9,3.2078]
[1763301987531,0.15835638,3148.0,3147.9,3.2111463]
[1763301988333,0.00295638,3148.0,3147.9,3.2111463]
[1763301990637,0.1554,3149.0,3148.0,6.0]
[1763301990842,0.1554,3149.0,3148.6,3.2078]
[1763301991632,0.1576793,3149.0,3148.6,3.2078]
[1763301991840,3.3654793,3149.0,3148.5,0.00476501]
[1763301993837,0.2959,3148.6,3148.5,0.00476501]
[1763301994343,3.5037,3148.6,3148.5,0.00476501]
[1763301996241,3.2078,3148.6,3148.5,0.00476501]
[1763301997152,3.3654793,3149.0,3148.5,0.00476501]
[1763301997450,0.1576793,3149.0,3148.5,3.21256501]
[1763301997849,3.3632,3149.5,3148.9,3.2078]
[1763301998153,3.463,3150.6,3148.9,3.2078]
[1763301998154,3.2078,3149.9,3148.9,3.2078]
[1763301998354,3.2078,3149.9,3149.3,3.2078]
[1763301999148,3.21566999,3149.9,3149.3,3.2078]
[1763301999948,0.00786999,3149.9,3149.7,3.2078]
[1763302002461,0.1798,3149.5,3149.3,3.2078]
[1763302002657,0.2959,3149.4,3149.3,3.2078]
[1763302003758,0.2959,3148.9,3148.8,3.2078]
[1763302004463,0.1798,3149.0,3148.8,3.2078]
[1763302012660,0.2959,3148.9,3148.8,3.2078]
[1763302014164,0.2959,3148.9,3148.6,0.84999675]
[1763302014367,0.2959,3148.7,3148.6,0.84999675]
[1763302014765,3.3876,3149.0,3148.5,1.13953116]
[1763302014963,3.3876,3149.0,3148.8,0.85313765]
[1763302015262,3.2078,3149.4,3148.8,1.13476615]
[1763302015467,3.2078,3149.4,3149.1,0.85326686]
[1763302015670,0.1798,3149.5,3149.2,4.06106686]
[1763302017371,0.2959,3149.2,3149.1,0.85326686]
[1763302017567,0.1798,3149.0,3148.8,0.85326686]
[1763302017875,0.1798,3149.0,3148.9,0.85326686]
[1763302018076,0.1798,3149.0,3148.9,1.13476615]
[1763302018472,0.1798,3149.0,3148.9,4.34256615]
[1763302018666,0.1798,3149.0,3148.9,3.2078]
[1763302018869,0.1798,3149.0,3148.9,4.34602537]
[1763302019071,0.1739,3149.0,3148.9,3.2078]
[1763302020569,0.1739,3149.0,3148.9,4.91461677]
[1763302020878,0.1798,3149.5,3148.9,4.91461677]
[1763302021075,0.1798,3149.5,3149.3,0.85408229]
[1763302021265,0.00786999,3149.9,3149.3,3.2078]
[1763302021465,0.00786999,3149.9,3149.8,1.13858868]
[1763302022374,3.2078,3150.7,3149.8,17.17588302]
[1763302022671,3.2078,3150.7,3150.4,0.85364373]
[1763302022873,0.2793,3150.4,3150.3,0.85364373]
[1763302023270,0.2793,3150.3,3150.2,0.85364373]
[1763302023468,0.2793,3150.3,3150.2,0.85590148]
[1763302024572,0.2793,3150.3,3150.2,0.00225775]
[1763302024771,6.2793,3150.3,3150.2,0.00225775]
[1763302024972,9.4871,3150.3,3150.2,0.00225775]
[1763302025378,0.2793,3150.1,3150.0,0.00476501]
[1763302025779,0.2793,3149.8,3149.7,0.39880696]
[1763302025978,0.2793,3149.6,3149.5,3.2078]
[1763302026382,0.2793,3149.6,3149.5,3.21013507]
[1763302027268,0.2793,3149.6,3149.5,0.00233507]
[1763302027477,0.2793,3149.2,3149.1,3.2078]
[1763302028070,0.2793,3149.2,3148.9,1.13819164]
[1763302028383,0.4532,3149.0,3148.7,3.2078]
[1763302028574,0.4532,3149.0,3148.7,3.21147516]
[1763302029775,0.2793,3148.8,3148.7,0.00367516]
[1763302030786,3.2078,3148.9,3148.7,0.00367516]
[1763302031177,0.1739,3149.0,3148.7,3.21147516]
[1763302031378,0.1739,3149.0,3148.8,1.13819164]
[1763302032688,0.00476501,3149.1,3148.8,1.13819164]
[1763302032978,0.00476501,3149.1,3149.0,1.13819164]
[1763302033371,0.00476501,3149.1,3148.9,1.70728747]
[1763302033582,0.00476501,3149.1,3149.0,1.70728747]
[1763302036183,3.2078,3149.8,3149.0,1.70728747]
[1763302036386,0.1835,3149.5,3149.2,1.13894377]
[1763302036882,0.1835,3149.5,3149.3,1.13894377]
[1763302037473,0.1835,3149.5,3149.4,1.13894377]
[1763302038891,0.00476501,3149.7,3149.3,1.70728747]
[1763302039184,0.00271328,3150.4,3149.6,1.13855978]
[1763302039785,0.00271328,3150.4,3149.7,1.13855978]
[1763302039984,0.00476501,3150.2,3149.7,1.13855978]
[1763302045087,0.00476501,3150.2,3149.9,3.2078]
[1763302045290,0.00476501,3150.2,3149.9,4.34635978]
[1763302045886,0.4897,3150.0,3149.9,3.2078]
[1763302046083,0.10849564,3150.0,3149.9,3.2078]
[1763302046279,0.29199564,3150.0,3149.9,3.2078]
[1763302050190,0.3158,3149.6,3149.5,3.2078]
[1763302051294,0.1835,3150.0,3149.5,3.2078]
[1763302051994,0.2921,3149.6,3149.5,3.2078]
[1763302053488,0.1835,3150.0,3149.5,3.2078]
[1763302054596,0.2921,3149.6,3149.5,3.2078]
[1763302056096,0.1835,3150.0,3149.5,3.2078]
[1763302056297,0.2921,3149.6,3149.5,3.2078]
[1763302057586,0.1835,3150.0,3149.5,3.2078]
[1763302057994,0.1835,3150.0,3149.5,4.34635978]
[1763302058389,0.2921,3149.6,3149.5,3.2078]
[1763302058585,0.1835,3150.0,3149.5,3.2078]
[1763302058789,0.2921,3149.6,3149.5,3.2078]
[1763302060099,0.173,3149.5,3149.3,1.13855978]
[1763302061099,0.173,3149.5,3149.4,1.13855978]
[1763302061897,0.4651,3149.5,3149.4,1.13855978]
[1763302062992,0.4651,3149.5,3149.3,1.13855978]
[1763302063193,0.2921,3149.4,3149.2,1.70728747]
[1763302063402,0.173,3149.5,3149.2,1.70728747]
[1763302063604,0.4651,3149.5,3149.4,1.14121475]
[1763302065496,0.2921,3149.4,3149.3,1.14121475]
[1763302066090,0.173,3149.5,3149.2,1.14121475]
[1763302066297,0.2921,3149.3,3149.2,1.14121475]
[1763302066998,0.173,3149.5,3148.8,1.14121475]
[1763302066999,0.4651,3149.0,3148.8,1.14121475]
[1763302067204,0.2921,3148.9,3148.8,1.14121475]
[1763302068012,0.173,3149.0,3148.8,1.14121475]
[1763302068611,3.2078,3149.4,3148.8,1.14121475]
[1763302068910,0.173,3149.5,3149.3,1.14121475]
[1763302069113,0.1835,3150.0,3149.3,15.469]
[1763302069314,0.1835,3150.0,3149.7,1.1401182]
[1763302069910,3.3876,3150.5,3149.9,4.91797731]
[1763302070110,3.3876,3150.5,3150.1,1.13997406]
[1763302070503,3.3876,3150.5,3150.1,1.71017731]
[1763302070702,3.3876,3150.5,3150.3,1.13977555]
[1763302071103,3.3876,3150.5,3150.2,1.13977555]
[1763302071511,0.1798,3150.5,3150.2,1.13977555]
[1763302071712,0.1798,3150.5,3150.3,1.13977555]
[1763302072114,0.1798,3150.5,3150.1,1.71017731]
[1763302072115,0.1798,3150.5,3150.2,1.13977555]
[1763302078924,0.1798,3150.5,3150.1,1.13977555]
[1763302080724,0.2921,3150.2,3150.1,1.13977555]
[1763302081025,0.1798,3150.5,3150.1,1.13977555]
[1763302081622,0.2756,3150.2,3150.1,1.13977555]
[1763302082426,0.1798,3150.5,3150.1,1.13977555]
[1763302083628,0.1798,3150.5,3150.0,4.34757555]
[1763302084624,0.2756,3150.1,3150.0,4.34757555]
[1763302085025,0.2756,3150.1,3150.0,3.2078]
[1763302085830,0.1798,3150.5,3150.0,3.2078]
[1763302086030,0.2756,3150.2,3150.1,0.85338138]
[1763302087332,0.1798,3150.5,3150.1,0.85338138]
[1763302087522,0.00476501,3150.6,3150.2,1.71017731]
[1763302087828,0.173,3151.0,3150.4,4.91797731]
[1763302088033,0.173,3151.0,3150.8,0.85319214]
[1763302088433,0.2756,3150.9,3150.8,16.30619214]
[1763302089029,0.2756,3150.9,3150.8,15.453]
[1763302089431,0.17698559,3151.0,3150.6,0.85319214]
[1763302089432,0.2756,3150.7,3150.6,0.85319214]
[1763302089638,0.2756,3150.6,3150.5,16.30719214]
[1763302090032,0.2756,3150.6,3150.5,16.30687734]
[1763302090234,0.17698559,3151.0,3150.5,16.30687734]
[1763302090527,0.2756,3150.6,3150.5,16.30687734]
[1763302091039,0.17698559,3151.0,3150.5,16.30687734]
[1763302091837,0.17698559,3151.0,3150.5,16.55658255]
[1763302092133,0.17698559,3151.0,3150.6,0.85287734]
[1763302092339,0.2756,3150.7,3150.6,16.30287734]
[1763302092731,0.17698559,3151.0,3150.6,16.30287734]
[1763302093542,0.2756,3150.7,3150.6,16.30287734]
[1763302094039,0.17698559,3151.0,3150.6,16.30287734]
[1763302095329,0.2756,3150.7,3150.6,16.30287734]
[1763302095638,0.2756,3150.7,3150.6,15.45]
[1763302095841,0.17698559,3151.0,3150.5,0.85287734]
[1763302095842,0.2744,3150.6,3150.5,0.85287734]
[1763302096144,0.1577,3150.5,3150.4,4.34538953]
[1763302097139,0.1577,3150.5,3150.4,3.2078]
[1763302097343,0.4321,3150.5,3150.4,3.2078]
[1763302097932,0.1577,3150.5,3150.4,3.2078]
[1763302099234,0.1577,3150.5,3150.4,4.91797731]
[1763302101846,0.4321,3150.5,3150.4,4.91797731]
[1763302102042,0.1577,3150.5,3150.4,4.91797731]
[1763302103044,0.17698559,3151.0,3150.4,4.91797731]
[1763302103244,0.17698559,3151.0,3150.9,0.85582639]
[1763302103446,0.17698559,3151.0,3150.8,1.14110185]
[1763302103646,0.45138559,3151.0,3150.8,1.14110185]
[1763302103843,0.17698559,3151.0,3150.8,1.14110185]
[1763302104045,0.17698559,3151.0,3150.8,4.91797731]
[1763302104345,0.17698559,3151.0,3150.9,1.14096904]
[1763302105349,0.00398559,3151.0,3150.9,16.57996904]
[1763302105645,0.16168559,3151.0,3150.9,17.14917731]
[1763302107148,0.16168559,3151.0,3150.9,15.439]
[1763302108346,0.00398559,3151.0,3150.9,15.439]
[1763302108849,0.173,3151.5,3150.9,15.439]
[1763302109046,0.173,3152.0,3150.9,15.439]
[1763302109047,0.173,3152.0,3151.4,3.2078]
[1763302109244,0.173,3152.0,3151.9,4.34780834]
[1763302109643,0.17675239,3152.0,3151.9,4.35093474]
[1763302109938,0.17675239,3152.0,3151.9,18.6469264]
[1763302110140,0.00375239,3152.0,3151.9,18.6469264]
[1763302110343,0.00312359,3152.3,3151.9,18.6469264]
[1763302110552,0.00312359,3152.3,3152.1,1.13803355]
[1763302111246,0.00664552,3152.3,3152.2,0.85286131]
[1763302112352,0.00664552,3152.3,3152.1,0.85286131]
[1763302113651,0.00664552,3152.3,3152.2,15.431]
[1763302114246,0.00664552,3152.3,3152.2,16.28386131]
[1763302114442,0.1577,3152.5,3152.2,16.28386131]
[1763302114761,0.1577,3153.0,3152.4,0.85286131]
[1763302115048,3.2078,3153.1,3152.8,0.85142951]
[1763302115252,3.3622,3153.5,3152.9,15.43]
[1763302115446,0.1544,3153.0,3152.9,15.43]
[1763302117354,3.36481839,3153.5,3152.9,15.43]
[1763302117653,3.36481839,3153.5,3153.1,3.2078]
[1763302117852,3.3622,3155.0,3153.2,16.34442951]
[1763302118050,0.20134468,3154.1,3154.0,4.34583355]
[1763302118250,0.1544,3155.0,3154.0,59.4698]
[1763302118450,0.1544,3155.0,3154.5,3.2078]
[1763302118655,0.1544,3155.0,3154.6,15.462]
[1763302118853,0.15742381,3155.0,3154.6,15.46497092]
[1763302119050,0.00302381,3155.0,3154.9,3.2078]
[1763302119259,0.1544,3155.5,3154.9,3.2078]
[1763302119460,0.1544,3155.5,3155.0,15.462]
[1763302120262,0.15686808,3155.5,3155.0,15.462]
[1763302123067,0.1544,3155.0,3154.9,3.2078]
[1763302123254,0.1544,3155.0,3154.9,18.6578]
[1763302123651,0.4018,3155.0,3154.9,3.2078]
[1763302123853,0.1544,3156.5,3154.9,24.6588]
[1763302124058,0.1544,3156.5,3156.2,3.2078]
[1763302124258,0.1544,3156.5,3156.3,15.481]
[1763302124658,0.1544,3157.0,3156.3,15.481]
[1763302124964,0.15765711,3157.0,3156.3,15.481]
[1763302125352,0.15765711,3157.0,3156.6,3.2078]
[1763302126665,0.15765711,3157.0,3156.7,15.486]
[1763302126858,0.15765711,3157.0,3156.7,15.485]
[1763302128163,0.00325711,3157.0,3156.7,15.485]
[1763302129360,0.1544,3157.5,3156.7,15.485]
[1763302129562,0.1544,3157.5,3157.3,3.2078]
[1763302129761,0.1544,3157.5,3157.4,15.479]
[1763302130363,0.15720669,3157.5,3157.4,15.48125383]
[1763302130763,0.40460669,3157.5,3157.4,15.48125383]
[1763302130965,0.15720669,3157.5,3157.4,15.48125383]
[1763302133056,0.15720669,3157.5,3157.4,15.47425383]
[1763302134166,0.40460669,3157.5,3157.4,0.00225383]
[1763302134753,6.40460669,3157.5,3157.4,0.00225383]
[1763302136770,0.2474,3157.2,3157.1,0.00475737]
[1763302137860,0.2474,3157.2,3157.1,0.00818988]
[1763302139574,0.2474,3157.2,3156.4,3.2078]
[1763302139575,0.4358,3156.5,3156.4,3.2078]
[1763302140562,0.4358,3156.5,3156.4,3.21026408]
[1763302140865,0.4358,3156.5,3156.4,0.00246408]
[1763302141670,0.1622,3156.5,3156.4,0.00246408]
[1763302142057,0.4358,3156.5,3156.4,0.00246408]
[1763302146962,0.4358,3156.5,3156.1,0.00475737]
[1763302146963,0.2736,3156.2,3156.1,0.00475737]
[1763302147169,0.2736,3156.2,3155.0,1.67729434]
[1763302147170,0.2736,3155.6,3155.5,3.2078]
[1763302148070,0.2736,3155.6,3155.5,3.21096779]
[1763302148576,0.1622,3156.0,3155.5,3.21096779]
[1763302149171,0.2736,3155.6,3155.5,0.00316779]
[1763302149672,0.2736,3155.3,3155.2,0.00475737]
[1763302149879,3.4814,3155.3,3155.2,0.00475737]
[1763302150577,3.4814,3155.3,3155.2,0.00782688]
[1763302151566,3.4814,3155.3,3154.7,0.83864717]
[1763302151567,0.2736,3154.8,3154.7,0.83864717]
[1763302151772,0.4358,3154.5,3154.4,0.83864717]
[1763302151973,0.2736,3154.4,3154.3,3.2078]
[1763302152778,0.27627557,3154.4,3154.3,3.21017197]
[1763302154374,0.00267557,3154.4,3154.3,3.21017197]
[1763302154574,0.27627557,3154.4,3154.3,3.21017197]
[1763302157586,3.48407557,3154.4,3154.3,0.00237197]
[1763302159286,3.21047557,3154.4,3154.3,0.00237197]
[1763302160788,3.45837557,3154.4,3154.3,0.00237197]
[1763302161784,3.21047557,3154.4,3154.3,0.00237197]
[1763302162187,0.00267557,3154.4,3154.3,0.00237197]
[1763302163387,0.25057557,3154.4,3154.3,0.00237197]
[1763302167391,0.00267557,3154.4,3154.3,0.00237197]
[1763302167693,0.25057557,3154.4,3154.3,0.00237197]
[1763302170191,0.00267557,3154.4,3154.3,0.84101914]
[1763302170396,0.00267557,3154.4,3154.3,0.00237197]
[1763302172192,0.00267557,3154.4,3154.3,1.67966631]
[1763302172396,0.1622,3155.0,3154.3,6.00237197]
[1763302172597,0.1622,3155.0,3154.9,4.34246996]
[1763302173190,3.2078,3155.6,3154.9,4.90980495]
[1763302173490,0.1622,3156.0,3155.3,5.4835557]
[1763302173689,0.41904002,3156.0,3155.9,1.13454691]
[1763302173888,0.41904002,3156.0,3155.7,4.90962036]
[1763302173889,0.2495,3155.8,3155.7,4.34234691]
[1763302174291,0.2495,3155.8,3155.7,3.2078]
[1763302174597,0.16954002,3156.0,3155.7,3.2078]
[1763302174793,0.2495,3155.8,3155.7,3.2078]
[1763302175590,0.2495,3155.7,3155.6,0.85579622]
[1763302176198,0.2495,3155.7,3155.6,0.00475737]
[1763302177795,0.2495,3155.7,3155.6,0.85583476]
[1763302177995,0.2495,3155.7,3155.6,0.00475737]
[1763302182602,0.3981,3155.0,3154.9,4.05887739]
[1763302184503,0.3981,3155.0,3154.9,3.2078]
[1763302185508,0.1486,3155.0,3154.9,3.2078]
[1763302185710,0.3981,3155.0,3154.9,3.2078]
[1763302192220,0.2495,3154.9,3154.8,0.85206511]
[1763302192419,0.1486,3155.0,3154.8,0.85206511]
[1763302192717,0.2495,3154.9,3154.8,0.85206511]
[1763302196119,0.2495,3154.8,3154.7,0.85206511]
[1763302200925,0.1486,3155.0,3154.7,1.70182036]
[1763302201130,0.1486,3155.0,3154.9,1.13720347]
[1763302201631,0.3991,3155.0,3154.9,1.13720347]
[1763302201928,0.1486,3155.0,3154.8,1.70182036]
[1763302202125,0.3991,3155.0,3154.8,1.70182036]
[1763302202435,0.15550227,3155.0,3154.8,1.70182036]
[1763302202628,0.2505,3154.8,3154.7,1.70182036]
[1763302202826,0.2505,3154.8,3154.7,16.55849145]
[1763302203720,0.2505,3154.8,3154.7,1.13749145]
[1763302203926,0.2505,3154.8,3154.7,16.56049145]
[1763302205932,0.2505,3154.8,3154.7,15.423]
[1763302206526,0.137,3155.0,3154.7,15.423]
[1763302206728,0.3875,3155.0,3154.9,0.85381278]
[1763302207326,0.3875,3155.0,3154.8,1.13749145]
[1763302208034,0.2505,3154.9,3154.8,1.13749145]
[1763302209134,0.2505,3154.9,3154.8,1.13904689]
[1763302209731,0.2505,3154.9,3154.7,17.12482036]
[1763302209927,0.2505,3154.8,3154.7,1.70182036]
[1763302210134,0.2505,3154.8,3154.7,15.421]
[1763302210431,0.2505,3154.8,3154.7,17.12282036]
[1763302211138,0.137,3155.0,3154.7,17.12282036]
[1763302211337,0.137,3155.0,3154.9,1.13997582]
[1763302211837,0.137,3155.0,3154.8,1.70182036]
[1763302212241,0.137,3155.0,3154.9,1.70182036]
[1763302212831,0.137,3155.0,3154.8,1.70182036]
[1763302213241,0.137,3155.0,3154.9,1.70182036]
[1763302213937,0.1486,3155.5,3154.9,2.2757557]
[1763302214239,0.2505,3155.4,3155.3,1.71062744]
[1763302214438,0.2505,3155.4,3155.3,17.13162744]
[1763302214631,0.1486,3155.5,3155.3,17.13162744]
[1763302215936,0.1486,3155.5,3155.3,15.421]
[1763302216139,0.1486,3155.5,3155.4,1.70904633]
[1763302217731,18.24635453,3156.5,3155.3,17.6967557]
[1763302217732,3.2078,3156.1,3155.3,17.6967557]
[1763302217941,3.2078,3156.1,3155.9,1.13887752]
[1763302218143,3.2078,3156.1,3155.9,15.42]
[1763302219037,3.2078,3156.1,3155.9,17.12831629]
[1763302219241,3.3564,3156.5,3155.9,17.12831629]
[1763302219438,0.00475737,3156.0,3155.9,15.42]
[1763302219645,3.3564,3156.5,3155.9,15.42]
[1763302219846,3.3564,3156.5,3156.3,1.70567912]
[1763302220045,3.6005,3156.5,3156.4,15.419]
[1763302220346,3.6005,3156.5,3156.4,16.5551057]
[1763302220542,3.60333332,3156.5,3156.4,16.5551057]
[1763302221150,0.2441,3156.4,3156.3,1.1361057]
[1763302221448,0.2441,3156.3,3156.2,15.419]
[1763302223743,0.2441,3155.9,3155.8,3.2078]
[1763302223947,0.141,3156.0,3155.8,18.6258]
[1763302227245,0.141,3156.0,3155.8,19.47728487]
[1763302228951,3.35923332,3156.5,3155.9,0.85148487]
[1763302230749,0.1404,3156.0,3155.9,0.85148487]